{"text_format":"1","workbook":"xlsx","n_sheets":1,"sheets":["Sheet1"],"not_rendered":{"charts":0,"images":0,"macros":0,"external_links":0,"defined_names":0,"comments":0,"pivot_tables":0},"unopened":[],"bounds":{"document_bytes":16777216,"sheet_cells":100000,"rows_first":2000,"rows_last":500,"rows_between":2000,"halvings":0,"cell_chars":16384,"cell_head_chars":4096},"cells_cut":0,"cells_raw":0,"read":"whole","date_system":"1900"}

{"sheet":"Sheet1","index":0,"n_rows":63,"n_cols":29,"rows_kept":63,"cut":false,"hidden":false,"merged":[]}
["2018 Summer Face Off Team Entries as of April 13 - we will update and post entries by each Friday leading up to the event"]
["NOTES:"]
["*u8 - let us know if you wish your u10 7v7 to be in u8 if age requirement is met"]
["*it is possible that top C level teams could be entered into B level playoffs in order to even out playoff fields"]
["*this is NOT final and the first step in ensuring accurate placement of teams - Entries must be finalized by May 15"]
["CLUB","Quick View (see Tally for actual)","Total",null,"u18/HSAA",null,"u18/HS A",null,"HSB Red",null,"HSB Green",null,"u14A",null,"u14B",null,"u14C",null,"u12A",null,"u12B",null,"u12C",null,"u10 10v10",null,"u10 7v7","Total","u8 7v7"]
[null,null,null,null,null,null,null,null,"*Jrs/below",null,"*Sophs/below"]
[]
["Apprentice ","4 teams - HS A, HSB, u14, u12",5,null,0,null,1,null,1,null,0,null,1,null,0,null,0,null,1,null,0,null,1,null,0,null,0,{"$f":"SUM(E9:AA9)","v":5}]
["Avalon Venom","14C, 12C, 10 7v7",3,null,0,null,0,null,0,null,0,null,0,null,0,null,1,null,0,null,0,null,1,null,0,null,1,3]
["Bay Area Sandsharks","HSAA, HS A, HSB, u14, u12, u10",6,null,1,null,1,null,1,null,0,null,1,null,0,null,0,null,1,null,0,null,0,null,0,null,1,{"$f":"SUM(E11:AA11)","v":6}]
["Brantley Bulldogs","HS A, HSB, u14",3,null,0,null,1,null,0,null,1,null,0,null,0,null,1,null,0,null,0,null,0,null,0,null,0,{"$f":"SUM(E12:AA12)","v":3}]
["Braveheart","u14, u12, u10",3,null,0,null,0,null,0,null,0,null,1,null,0,null,0,null,1,null,0,null,0,null,0,null,1,3]
["Broward Barracudas","HSB",1,null,0,null,0,null,1,null,0,null,0,null,0,null,0,null,0,null,0,null,0,null,0,null,0,1]
["CFL Vikings","HS A, HSB, u14",3,null,0,null,1,null,0,null,1,null,0,null,0,null,1,null,0,null,0,null,0,null,0,null,0,3]
["Chomp LC","HS A, HSB, 14C, 12C",4,null,0,null,1,null,0,null,1,null,0,null,0,null,1,null,0,null,0,null,1,null,0,null,0,4]
["Coolax, Oviedo","HSB Red, u14C, u10 7v7",3,null,0,null,0,null,1,null,0,null,0,null,0,null,1,null,0,null,0,null,0,null,0,null,1,3]
["Duval Hurricanes","HS A",1,null,0,null,1,null,0,null,0,null,0,null,0,null,0,null,0,null,0,null,0,null,0,null,0,1]
["Empire Elite ","HSB, u14A, u14B, u12, u10",5,null,0,null,0,null,1,null,0,null,1,null,1,null,0,null,1,null,0,null,0,null,1,null,0,5]
["FCA South Florida","HSB, u14A, u14B, u12A, u12B, u10",6,null,0,null,0,null,1,null,0,null,1,null,1,null,0,null,1,null,1,null,0,null,1,null,0,6]
["Florida Generals","yes, will upate on teams",3,null,1,null,0,null,0,null,1,null,1,null,0,null,0,null,0,null,0,null,0,null,0,null,0,3]
["Ganlin Lacrosse","u14C, u12C",2,null,0,null,0,null,0,null,0,null,0,null,0,null,1,null,0,null,0,null,1,null,0,null,0,2]
["Lacrosse Club Orlando (LCO)","HSAA, HS A, HSB x 2, u14 A/B, u12 A/B",8,null,1,null,1,null,1,null,1,null,1,null,1,null,0,null,1,null,1,null,0,null,0,null,0,8]
["Lake Mary Mohicans","u10 and u12C",2,null,0,null,0,null,0,null,0,null,0,null,0,null,0,null,0,null,0,null,1,null,1,null,0,2]
["LC Alachua","HSB",1,null,0,null,0,null,1,null,0,null,0,null,0,null,0,null,0,null,0,null,0,null,0,null,0,1]
["Manatee Wildcats","HSB, u14, u12, u10 x 2?",4,null,0,null,0,null,1,null,0,null,1,null,0,null,0,null,1,null,0,null,0,null,1,null,0,4]
["Mid Coast Renegades","HS A, HSB",2,null,0,null,1,null,0,null,1,null,0,null,0,null,0,null,0,null,0,null,0,null,0,null,0,2]
["Monarchs HS/Youth","HS A, HSB",2,null,0,null,1,null,0,null,1,null,0,null,0,null,0,null,0,null,0,null,0,null,0,null,0,2]
["Monsters","HSAA, HSB, u14, u12",4,null,1,null,0,null,0,null,1,null,1,null,0,null,0,null,1,null,0,null,0,null,0,null,0,4]
["Mustangs - Olympia","HS A",1,null,0,null,1,null,0,null,0,null,0,null,0,null,0,null,0,null,0,null,0,null,0,null,0,1]
["Ninjas","HS A, u14 A",2,null,0,null,1,null,0,null,0,null,1,null,0,null,0,null,0,null,0,null,0,null,0,null,0,2]
["North Florida Lacrosse (NFL)","HS A, HSB waiting for final word",2,null,0,null,1,null,0,null,1,null,0,null,0,null,0,null,0,null,0,null,0,null,0,null,0,2]
["Ocala LC Stallions/Outlaws","HS A, u12 A ",2,null,0,null,1,null,0,null,0,null,0,null,0,null,0,null,1,null,0,null,0,null,0,null,0,2]
["Pasco Lions","HS A, HSB, u14, u12",4,null,0,null,1,null,0,null,1,null,1,null,0,null,0,null,1,null,0,null,0,null,0,null,0,4]
["PV Sandgnats","HSAA, HS A, HSB, u14 A/B, u12 A/B",7,null,1,null,1,null,0,null,1,null,1,null,1,null,0,null,1,null,1,null,0,null,0,null,0,7]
["Predators Lacrosse (Cape Coral)","HSB",1,null,0,null,0,null,1,null,0,null,0,null,0,null,0,null,0,null,0,null,0,null,0,null,0,1]
["Renegades","HSB, u12C",2,null,0,null,0,null,1,null,0,null,0,null,0,null,0,null,0,null,0,null,1,null,0,null,0,2]
["Royals","1 HS A? pending LCO",0,null,0,null,0,null,0,null,0,null,0,null,0,null,0,null,0,null,0,null,0,null,0,null,0,0]
["Sarasotal Seahawks","HS A, HSB, u14, u12, u10",5,null,0,null,1,null,0,null,1,null,1,null,0,null,0,null,1,null,0,null,0,null,1,null,0,5]
["Snipers","u14, u12 x 2, u10 x 2",5,null,0,null,0,null,0,null,0,null,1,null,0,null,0,null,1,null,1,null,0,null,2,null,0,5]
["South Florida Leatherbacks","u14 A, B, C; u12",4,null,0,null,0,null,0,null,0,null,1,null,1,null,1,null,1,null,0,null,0,null,0,null,0,4]
["Southern Tide","u14, u12, u10",3,null,0,null,0,null,0,null,0,null,1,null,0,null,0,null,1,null,0,null,0,null,0,null,1,3]
["Space Coast Stingrays","HS A, HSB, u12, u10",4,null,0,null,1,null,0,null,1,null,0,null,0,null,0,null,0,null,0,null,1,null,0,null,1,4]
["Spartans Lax","HS A, 14C, u10 7v7",3,null,0,null,1,null,0,null,0,null,0,null,0,null,1,null,0,null,0,null,0,null,0,null,1,3]
["Stallions","HSB, u14C",2,null,0,null,0,null,1,null,0,null,0,null,0,null,1,null,0,null,0,null,0,null,0,null,0,2]
["Stealth","HS A, HSB, u12, u10 x2",5,null,0,null,1,null,0,null,1,null,0,null,0,null,0,null,1,null,0,null,0,null,2,null,0,5]
["Surge 2022","u14",1,null,0,null,0,null,0,null,0,null,1,null,0,null,0,null,0,null,0,null,0,null,0,null,0,1]
["Swarm"," u10",1,null,0,null,0,null,0,null,0,null,0,null,0,null,0,null,0,null,0,null,0,null,1,null,0,1]
["Tampa Tarpons","HSAA, HS A, 14A and B, 12A, 10 7v7",6,null,1,null,1,null,0,null,0,null,1,null,1,null,0,null,1,null,0,null,0,null,0,null,1,6]
["Team Maverick","u16, u14A and B, u12A",4,null,0,null,0,null,1,null,0,null,1,null,1,null,0,null,1,null,0,null,0,null,0,null,0,4]
["Team 91/Palm Beach Revolution","u14A, 12 A, u10 A",3,null,0,null,0,null,0,null,0,null,1,null,0,null,0,null,1,null,0,null,0,null,0,null,1,3]
["Thunder (Miami)","HSAA, HSB, u14 C",3,null,1,null,0,null,0,null,1,null,0,null,0,null,1,null,0,null,0,null,0,null,0,null,0,3]
["Viera Venom","u14, u12, u10",3,null,0,null,0,null,0,null,0,null,0,null,0,null,1,null,0,null,0,null,1,null,0,null,1,3]
["Villages LC","HS A, HSB",2,null,0,null,1,null,0,null,1,null,0,null,0,null,0,null,0,null,0,null,0,null,0,null,0,2]
["Warhawks","HSB",1,null,0,null,0,null,1,null,0,null,0,null,0,null,0,null,0,null,0,null,0,null,0,null,0,1]
["West Florida LC","HS A, HSB, u14, u12",4,null,0,null,1,null,0,null,1,null,1,null,0,null,0,null,1,null,0,null,0,null,0,null,0,4]
["West Tampa Wolves","u10 7v7, u12C, u14C, HSB",4,null,0,null,0,null,1,null,0,null,0,null,0,null,1,null,0,null,0,null,1,null,1,null,0,4]
["WO Gorillas","HSAA or A",1,null,1,null,0,null,0,null,0,null,0,null,0,null,0,null,0,null,0,null,0,null,0,null,0,1]
["WO Outlaws/Windermere ","HSAA or A, 14 A, 12C",3,null,0,null,1,null,0,null,0,null,1,null,0,null,0,null,1,null,0,null,0,null,0,null,0,3]
["Xtreme","HSB, HS 2021, u14, u12, u10",5,null,0,null,0,null,1,null,1,null,1,null,0,null,0,null,1,null,0,null,0,null,1,null,0,5]
["Yellow Jackests","u14 C, u12c, u10 7v7",3,null,0,null,0,null,0,null,0,null,0,null,0,null,1,null,0,null,0,null,1,null,0,null,1,3]
[null,null,null,null,{"$f":"SUM(E9:E61)","v":8},null,{"$f":"SUM(G9:G61)","v":23},null,{"$f":"SUM(I9:I61)","v":16},null,{"$f":"SUM(K9:K61)","v":18},null,{"$f":"SUM(M9:M61)","v":23},null,{"$f":"SUM(O9:O61)","v":7},null,{"$f":"SUM(Q9:Q61)","v":13},null,{"$f":"SUM(S9:S61)","v":22},null,{"$f":"SUM(U9:U61)","v":4},null,{"$f":"SUM(W9:W61)","v":10},null,{"$f":"SUM(Y9:Y61)","v":12},null,{"$f":"SUM(AA9:AA61)","v":11},{"$f":"SUM(AB9:AB61)","v":167},{"$f":"SUM(AB62)","v":167}]
[null,null,{"$f":"SUM(C9:C61)","v":167},null,"u18/HSAA",null,"u18/HS A",null,"HSB Red",null,"HSB Green",null,"u14A",null,"u14B",null,"u14C",null,"u12A",null,"u12B",null,"u12C",null,"u10 10v10",null,"u10 7v7"]